bitfinex/quotes_SOLUSD_20251002
["timestamp","ask_amount","ask_price","bid_price","bid_amount"]
[1759383609245,1.77971316,224.59,224.51,33.92]
[1759383609444,1.49539002,224.62,224.52,0.7]
[1759383609646,12.65618837,224.62,224.54,20.8]
[1759383609867,0.67,224.63,224.55,25.95335114]
[1759383610077,1.49539002,224.64,224.56,33.22]
[1759383610374,1.49539002,224.65,224.57,0.7]
[1759383610583,1.49539002,224.67,224.59,20.8]
[1759383610760,4.45089507,224.68,224.59,21.5]
[1759383610959,0.67,224.69,224.6,0.7]
[1759383611172,0.67,224.69,224.61,33.22]
[1759383611488,5.12062805,224.69,224.61,33.22]
[1759383611781,1.49539002,224.68,224.62,0.7]
[1759383611979,6.61601807,224.69,224.62,0.7]
[1759383612487,2.33491155,224.68,224.62,0.7]
[1759383612875,5.12062805,224.69,224.62,0.7]
[1759383613078,2.33491155,224.65,224.61,33.22]
[1759383613291,0.67,224.64,224.57,0.7]
[1759383613588,2.33491155,224.63,224.58,33.2]
[1759383613987,2.33491155,224.61,224.54,21.5]
[1759383614155,0.67,224.62,224.57,33.2]
[1759383614364,2.33491155,224.61,224.57,33.2]
[1759383614695,2.33491155,224.62,224.57,33.9]
[1759383615360,4.45174688,224.64,224.57,33.9]
[1759383615561,2.33491155,224.62,224.57,33.9]
[1759383615872,2.33491155,224.63,224.57,37.6528865]
[1759383616051,2.33491155,224.64,224.58,0.7]
[1759383616255,5.63352863,224.64,224.58,0.7]
[1759383616968,4.45176512,224.63,224.58,0.7]
[1759383617263,5.12156302,224.65,224.58,5.15266649]
[1759383617460,10.75509165,224.65,224.58,5.15266649]
[1759383617663,5.63352863,224.64,224.58,5.15266649]
[1759383618557,4.45097253,224.67,224.58,5.15266649]
[1759383618890,6.30352863,224.66,224.59,0.7]
[1759383619067,5.63352863,224.65,224.59,33.88]
[1759383619878,0.67,224.66,224.59,33.88]
[1759383620186,5.63352863,224.66,224.6,33.18]
[1759383620572,0.67,224.68,224.61,0.7]
[1759383620892,10.75430497,224.68,224.61,0.7]
[1759383621085,5.63352863,224.67,224.61,0.7]
[1759383621793,5.12077634,224.68,224.61,0.7]
[1759383622005,5.63352863,224.67,224.61,0.7]
[1759383622171,5.63352863,224.66,224.61,0.7]
[1759383622493,5.63352863,224.66,224.6,37.63231741]
[1759383622680,5.63352863,224.66,224.6,4.45231741]
[1759383622998,5.63352863,224.66,224.61,33.16]
[1759383623169,6.31352863,224.66,224.6,4.45231741]
[1759383623500,6.31352863,224.66,224.61,33.16]
[1759383624195,5.63352863,224.66,224.61,33.83]
[1759383624398,5.63352863,224.66,224.61,0.67]
[1759383624574,5.63352863,224.66,224.62,33.16]
[1759383624773,5.12037828,224.7,224.63,0.67]
[1759383624974,5.63352863,224.68,224.63,0.67]
[1759383625376,0.67,224.7,224.64,0.67]
[1759383625588,10.08374731,224.71,224.65,20.8]
[1759383625899,5.63352863,224.69,224.65,20.8]
[1759383626086,6.30352863,224.69,224.65,20.8]
[1759383626671,5.63352863,224.69,224.65,20.8]
[1759383626980,0.67,224.72,224.66,0.67]
[1759383627173,5.63352863,224.7,224.65,20.8]
[1759383627372,6.30352863,224.7,224.65,20.8]
[1759383628098,10.08380171,224.71,224.65,20.8]
[1759383628302,10.08380171,224.71,224.65,25.92136612]
[1759383628973,5.63352863,224.72,224.65,25.92136612]
[1759383629602,0.95432314,224.73,224.65,25.25136612]
[1759383629806,0.95432314,224.73,224.66,0.67]
[1759383629977,0.95432314,224.73,224.67,33.14]
[1759383630610,10.08327159,224.74,224.67,33.14]
[1759383631494,5.63352863,224.72,224.65,20.8]
[1759383631801,5.63352863,224.67,224.65,79.2]
[1759383632010,6.30352863,224.67,224.62,33.14]
[1759383632308,0.14216157,224.71,224.63,0.67]
[1759383632309,5.63352863,224.7,224.63,0.67]
[1759383632904,5.63352863,224.7,224.63,5.12162057]
[1759383633114,0.67,224.71,224.63,5.12162057]
[1759383633314,5.63352863,224.73,224.64,0.67]
[1759383633495,0.67,224.74,224.66,20.8]
[1759383633694,6.30352863,224.74,224.67,33.79]
[1759383633912,5.63352863,224.73,224.67,33.12]
[1759383634115,6.30352863,224.72,224.67,33.12]
[1759383634303,5.63352863,224.7,224.66,20.8]
[1759383634508,6.30352863,224.7,224.66,20.8]
[1759383635718,0.67,224.7,224.66,20.8]
[1759383635922,5.11994089,224.73,224.66,25.25114173]
[1759383636129,5.63352863,224.72,224.66,25.25114173]
[1759383636932,5.63352863,224.74,224.67,0.67]
[1759383637235,10.08314172,224.74,224.67,5.12092991]
[1759383637397,10.75314172,224.74,224.67,5.12092991]
[1759383637706,5.63352863,224.73,224.67,5.12092991]
[1759383638310,2.33387768,224.73,224.67,5.12092991]
[1759383641096,2.33387768,224.73,224.65,33.12]
[1759383641097,2.33387768,224.71,224.65,20.8]
[1759383641306,2.33387768,224.69,224.65,53.9]
[1759383641629,2.33387768,224.7,224.65,53.9]
[1759383641803,2.33387768,224.7,224.65,54.57]
[1759383642000,0.28432314,224.72,224.65,54.57]
[1759383642320,0.95432314,224.72,224.65,59.02131481]
[1759383642632,6.78406884,224.71,224.65,59.02131481]
[1759383643125,0.67,224.72,224.65,59.02131481]
[1759383643309,0.67,224.72,224.66,0.67]
[1759383643310,0.28432314,224.72,224.66,0.67]
[1759383643497,2.61820082,224.72,224.66,0.67]
[1759383644310,2.61820082,224.72,224.67,4.45097253]
[1759383644513,3.28820082,224.72,224.67,4.45097253]
[1759383645114,3.28820082,224.72,224.66,0.67]
[1759383645317,0.95432314,224.72,224.66,4.4511626]
[1759383645518,3.28820082,224.72,224.66,4.4511626]
[1759383645714,7.73821818,224.72,224.65,54.57]
[1759383646428,3.28820082,224.72,224.65,59.02132212]
[1759383646947,0.95432314,224.72,224.65,59.02132212]
[1759383647518,0.67,224.72,224.65,59.02132212]
[1759383648527,25.9098997,224.86,224.66,0.67]
[1759383648718,10.87647521,224.81,224.66,0.67]
[1759383648921,0.67,224.83,224.7,20.8]
[1759383649128,0.67,224.83,224.74,20.8]
[1759383649303,0.67,224.85,224.75,33.08]
[1759383649504,0.67,224.85,224.77,20.8]
[1759383649726,0.2,224.79,224.77,20.8]
[1759383649903,0.2,224.79,224.77,21.47]
[1759383650306,0.2,224.79,224.77,25.9189923]
[1759383652222,0.2,224.79,224.77,58.9789923]
[1759383652515,0.2,224.79,224.77,33.06]
[1759383652732,0.2,224.79,224.77,20.8]
[1759383652923,0.2,224.79,224.77,53.86]
[1759383653511,0.87,224.78,224.7,0.67]
[1759383653717,7.65270701,224.78,224.71,33.06]
[1759383654015,7.65270701,224.78,224.71,53.86]
[1759383654230,5.31882933,224.78,224.71,33.06]
[1759383654421,5.31882933,224.78,224.71,37.51007676]
[1759383654624,0.87,224.78,224.71,58.31007676]
[1759383654826,0.2,224.78,224.72,0.72]
[1759383655715,0.2,224.78,224.73,33.04]
[1759383655914,0.89,224.78,224.73,33.04]
[1759383656111,0.2,224.78,224.74,0.72]
[1759383656340,0.2,224.78,224.77,25.2489923]
[1759383656517,0.2,224.78,224.77,59.0089923]
[1759383658740,0.2,224.78,224.77,25.9689923]
[1759383659057,0.2,224.78,224.77,59.0089923]
[1759383659811,0.2,224.78,224.77,38.2089923]
[1759383660214,0.2,224.78,224.77,25.9689923]
[1759383660416,0.2,224.78,224.77,5.1689923]
[1759383660620,0.2,224.78,224.77,38.1889923]
[1759383661030,0.2,224.78,224.77,25.2489923]
[1759383661235,0.2,224.78,224.77,58.2689923]
[1759383661544,0.2,224.78,224.77,58.9889923]
[1759383662123,0.2,224.78,224.77,58.2689923]
[1759383663030,0.2,224.79,224.78,79.0]
[1759383663447,0.2,224.79,224.78,112.02]
[1759383664325,0.2,224.79,224.78,116.46879437]
[1759383666656,0.2,224.79,224.78,117.18879437]
[1759383668021,0.69,224.86,224.78,260.7107803]
[1759383668345,0.69,224.89,224.82,20.8]
[1759383668561,0.69,224.89,224.83,33.0]
[1759383668726,0.69,224.89,224.83,111.99999999]
[1759383669042,0.69,224.89,224.86,20.8]
[1759383669244,0.69,224.89,224.87,33.0]
[1759383669543,3.22387768,224.91,224.87,33.0]
[1759383669748,0.69,224.9,224.87,33.0]
[1759383669925,0.2,224.91,224.87,33.0]
[1759383669926,0.69,224.89,224.87,33.0]
[1759383670328,0.69,224.88,224.87,33.0]
[1759383670937,0.69,224.88,224.87,32.98]
[1759383672048,0.83216157,224.9,224.87,32.98]
[1759383672252,0.69,224.9,224.87,32.98]
[1759383672740,0.2,224.91,224.87,32.98]
[1759383673240,0.2,224.91,224.88,4.44681607]
[1759383673442,0.2,224.91,224.89,32.98]
[1759383675262,0.2,224.91,224.9,32.98]
[1759383675456,0.69,224.9,224.81,0.72]
[1759383675650,0.69,224.9,224.82,32.98]
[1759383676160,0.69,224.9,224.85,20.8]
[1759383676363,0.69,224.89,224.86,32.96]
[1759383676564,0.69,224.89,224.85,20.8]
[1759383676774,0.69,224.89,224.86,32.96]
[1759383676981,0.69,224.89,224.87,32.96]
[1759383677258,0.69,224.89,224.88,32.96]
[1759383677468,2.38090595,224.91,224.88,32.96]
[1759383677765,0.69,224.89,224.88,32.96]
[1759383678064,0.89,224.91,224.88,32.96]
[1759383678265,0.2,224.91,224.88,32.96]
[1759383678573,0.2,224.91,224.89,4.44661834]
[1759383678867,0.2,224.91,224.9,32.96]
[1759383679166,0.2,224.91,224.9,33.68]
[1759383680169,0.2,224.91,224.9,38.12642063]
[1759383681744,0.2,224.91,224.9,37.40642063]
[1759383681958,0.2,224.91,224.9,116.60642063]
[1759383683247,0.2,224.91,224.9,83.64642063]
[1759383683448,0.86,224.91,224.9,79.2]
[1759383683666,0.86,224.91,224.9,112.14]
[1759383683866,0.86,224.91,224.9,79.2]
[1759383684066,0.86,224.91,224.9,112.14]
[1759383686066,0.86,224.91,224.9,79.2]
[1759383686269,0.86,224.91,224.9,112.12]
[1759383686781,0.86,224.91,224.9,32.92]
[1759383688474,6.79712888,224.91,224.87,79.2]
[1759383688680,0.66,224.9,224.88,32.92]
[1759383688977,0.66,224.89,224.87,79.2]
[1759383689172,0.66,224.88,224.87,79.2]
[1759383689372,0.66,224.88,224.87,112.12]
[1759383692768,0.66,224.9,224.87,112.12]
[1759383692961,0.66,224.89,224.87,112.12]
[1759383693483,2.15090595,224.88,224.82,79.2]
[1759383693681,2.15090595,224.87,224.83,32.9]
[1759383693871,0.66,224.86,224.83,32.9]
[1759383694473,1.49090595,224.87,224.83,32.9]
[1759383694677,0.66,224.86,224.83,32.9]
[1759383695982,0.66,224.85,224.84,32.9]
[1759383696384,6.59792616,224.87,224.84,32.9]
[1759383696560,5.93792616,224.87,224.84,32.9]
[1759383696765,0.66,224.86,224.84,32.9]
[1759383696964,0.66,224.85,224.84,32.9]
[1759383697165,6.59792616,224.87,224.84,32.9]
[1759383697472,0.66,224.86,224.84,32.9]
[1759383698577,0.66,224.86,224.84,112.1]
[1759383699566,0.66,224.86,224.84,79.2]
[1759383699753,1.49090595,224.87,224.84,79.2]
[1759383699957,1.49090595,224.87,224.85,32.88]
[1759383700391,0.66,224.86,224.85,32.88]
[1759383701385,5.10726494,224.86,224.85,32.88]
[1759383702977,6.59817089,224.86,224.85,32.88]
[1759383703594,6.59817089,224.86,224.84,79.2]
[1759383703891,2.43522909,224.85,224.84,112.08]
[1759383704469,2.43522909,224.85,224.84,32.88]
[1759383704871,0.14216157,224.83,224.81,32.88]
[1759383705171,2.29306752,224.82,224.8,32.86]
[1759383705483,11.01863678,224.8,224.74,79.91]
[1759383705790,1.49090595,224.79,224.75,32.86]
[1759383705993,0.66,224.84,224.76,0.71]
[1759383706180,1.63306752,224.83,224.77,32.86]
[1759383706368,2.29306752,224.83,224.77,32.86]
[1759383706568,1.63306752,224.82,224.77,32.86]
[1759383706769,2.15090595,224.81,224.77,32.86]
[1759383706978,2.15090595,224.8,224.77,32.86]
[1759383707583,1.49090595,224.8,224.78,32.86]
[1759383707775,1.63306752,224.81,224.79,32.86]
[1759383708082,2.29306752,224.81,224.79,32.86]
[1759383708500,6.74127062,224.81,224.79,32.86]
[1759383708668,2.29306752,224.8,224.75,79.2]
[1759383708866,2.15090595,224.79,224.76,32.86]
[1759383709695,1.49090595,224.79,224.76,32.86]
[1759383709900,6.08151747,224.8,224.76,32.86]
[1759383710067,6.74151747,224.8,224.75,79.2]
[1759383710271,2.15090595,224.79,224.76,32.86]
[1759383710593,1.49090595,224.78,224.76,32.86]
[1759383711697,5.93970032,224.78,224.76,79.2]
[1759383711991,2.15090595,224.77,224.76,79.2]
[1759383712492,2.15090595,224.77,224.76,112.04]
[1759383712703,2.15090595,224.77,224.76,79.2]
[1759383712869,2.29306752,224.77,224.76,79.2]
[1759383713790,6.74205982,224.77,224.76,79.2]
[1759383714501,6.22422139,224.77,224.76,79.2]
[1759383715166,4.73331544,224.77,224.76,79.2]
[1759383715369,0.28432314,224.77,224.76,79.2]
[1759383716487,0.28432314,224.77,224.75,112.04]
[1759383717779,6.94426157,224.77,224.75,112.04]
[1759383718701,6.22426157,224.77,224.75,112.04]
[1759383718877,0.28432314,224.77,224.75,112.04]
[1759383719278,12.36738116,224.78,224.75,112.04]
[1759383720002,0.14216157,224.77,224.75,112.04]
[1759383720292,0.86216157,224.77,224.75,112.04]
[1759383720467,0.14216157,224.77,224.75,112.04]
[1759383720900,0.14216157,224.77,224.75,79.2]
[1759383721094,0.14216157,224.77,224.76,32.82]
[1759383721687,0.86216157,224.77,224.76,32.82]
[1759383722004,0.14216157,224.77,224.76,32.82]
[1759383722908,0.28432314,224.77,224.76,32.82]
[1759383726849,5.45331544,224.77,224.76,32.82]
[1759383727102,6.94422139,224.77,224.76,32.82]
[1759383728276,6.22422139,224.77,224.76,32.8]
[1759383728602,0.28432314,224.77,224.76,32.8]
[1759383729309,10.87647521,224.81,224.76,33.48]
[1759383729607,11.12147338,224.85,224.77,0.68]
[1759383729785,2.21090595,224.87,224.78,32.78]
[1759383729977,10.87647521,224.86,224.79,0.68]
[1759383730185,10.87647521,224.86,224.8,32.78]
[1759383730377,10.87647521,224.86,224.81,5.1282007]
[1759383730619,10.87647521,224.86,224.82,32.78]
[1759383730814,10.87647521,224.86,224.82,33.46]
[1759383732016,2.35306752,224.85,224.83,32.78]
[1759383732192,0.72,224.84,224.83,32.78]
[1759383732689,0.14216157,224.87,224.83,33.46]
[1759383732893,10.92688751,224.88,224.84,0.68]
[1759383733103,10.92688751,224.88,224.85,32.78]
[1759383735018,0.72,224.87,224.83,79.2]
[1759383735198,15.37371762,224.88,224.84,32.78]
[1759383735696,10.92688751,224.88,224.84,33.46]
[1759383736112,10.92688751,224.88,224.85,0.68]
[1759383736334,10.92688751,224.88,224.86,32.76]
[1759383739528,17.70417988,224.88,224.86,32.76]
[1759383739721,0.72,224.87,224.86,32.76]
[1759383739920,6.77729237,224.88,224.86,32.76]
[1759383740224,3.05044222,224.87,224.83,79.2]
[1759383740401,0.72,224.86,224.85,32.76]
[1759383740604,3.05044222,224.86,224.85,32.76]
[1759383740928,2.33044222,224.86,224.85,32.76]
[1759383741517,2.33044222,224.87,224.85,32.76]
[1759383741715,2.33044222,224.88,224.85,32.76]
[1759383741903,0.7,224.88,224.85,32.76]
[1759383742103,3.03044222,224.88,224.86,0.31738023]
[1759383742725,10.87647521,224.89,224.86,0.31738023]
[1759383742931,13.20691743,224.89,224.86,33.77738023]
[1759383743305,10.87647521,224.89,224.86,33.77738023]
[1759383743719,0.28432314,224.88,224.86,33.05738023]
[1759383744720,2.61476536,224.88,224.86,33.05738023]
[1759383744910,3.17260379,224.87,224.86,33.03738023]
[1759383745744,2.47260379,224.87,224.86,0.31738023]
[1759383745946,0.14216157,224.87,224.86,0.31738023]
[1759383746116,0.14216157,224.87,224.86,79.51738023]
[1759383746437,0.14216157,224.87,224.86,111.92]
[1759383750341,0.14216157,224.87,224.86,112.23738023]
[1759383751528,0.14216157,224.87,224.86,112.21738023]
[1759383754123,0.14216157,224.88,224.86,112.21738023]
[1759383755248,13.90691743,224.9,224.86,112.21738023]
[1759383755542,0.14216157,224.89,224.86,112.93738023]
[1759383755719,2.33044222,224.88,224.86,112.21738023]
[1759383755916,3.17260379,224.89,224.86,112.21738023]
[1759383756145,0.84216157,224.89,224.87,32.68]
[1759383756344,3.17260379,224.89,224.87,32.68]
[1759383756722,0.84216157,224.89,224.87,32.68]
[1759383757127,3.17260379,224.89,224.87,32.68]
[1759383757743,2.61476536,224.89,224.87,32.68]
[1759383758241,0.28432314,224.89,224.87,111.88]
[1759383758753,0.2,224.91,224.88,0.72]
[1759383758925,0.2,224.91,224.89,32.66]
[1759383759424,0.2,224.91,224.88,0.72]
[1759383759645,5.43079796,224.9,224.89,32.66]
[1759383759829,7.76124018,224.9,224.89,32.66]
[1759383760527,5.43079796,224.9,224.89,32.66]
[1759383760739,0.2,224.91,224.89,33.38]
[1759383760946,10.95959853,224.95,224.9,33.38]
[1759383761153,10.95959853,224.95,224.88,25.24677378]
[1759383761154,2.33044222,224.94,224.88,20.8]
[1759383761346,5.22856667,224.95,224.87,4.44687578]
[1759383761347,2.33044222,224.92,224.87,4.44687578]
[1759383761552,2.33044222,224.92,224.89,32.66]
[1759383762258,2.33044222,224.92,224.9,32.66]
[1759383762426,4.44581605,224.94,224.9,32.66]
[1759383762747,2.33044222,224.93,224.87,5.16687578]
[1759383762949,2.33044222,224.9,224.83,4.44764299]
[1759383763129,2.33044222,224.88,224.84,33.36]
[1759383763456,2.33044222,224.89,224.84,33.36]
[1759383763838,3.03044222,224.89,224.84,0.72]
[1759383764046,10.87647521,224.93,224.81,79.92]
[1759383764047,2.33044222,224.87,224.81,79.92]
[1759383764372,6.77756432,224.87,224.82,32.64]
[1759383764545,7.47756432,224.87,224.82,32.64]
[1759383764855,7.47756432,224.87,224.83,32.64]
[1759383766038,4.4471221,224.87,224.84,0.72]
[1759383766351,6.777145,224.89,224.83,32.64]
[1759383766551,6.777145,224.89,224.84,0.72]
[1759383767052,6.777145,224.89,224.85,32.64]
[1759383767645,4.44670278,224.89,224.85,32.64]
[1759383767839,6.777145,224.89,224.85,32.64]
[1759383768756,4.44670278,224.89,224.85,33.36]
[1759383769457,4.44670278,224.89,224.86,32.62]
[1759383769458,2.33044222,224.88,224.86,32.62]
[1759383769655,2.33044222,224.88,224.83,0.72]
[1759383769849,3.03044222,224.88,224.84,32.62]
[1759383770029,2.33044222,224.87,224.83,79.2]
[1759383770234,3.03044222,224.87,224.84,32.62]
[1759383770438,2.33044222,224.86,224.84,32.62]
[1759383770637,4.44740938,224.85,224.84,32.62]
[1759383770863,4.44740938,224.85,224.84,79.2]
[1759383771027,4.44740938,224.85,224.84,111.82]
[1759383771233,6.7778516,224.85,224.84,79.2]
[1759383771431,0.14216157,224.83,224.73,79.92]
[1759383771631,2.33044222,224.77,224.73,112.54]
[1759383772060,2.33044222,224.77,224.67,145.83775054]
[1759383772061,2.33044222,224.76,224.7,0.72]
[1759383772362,2.33044222,224.71,224.67,2.32120468]
[1759383772664,4.45057634,224.69,224.68,32.62]
[1759383772870,4.45033026,224.71,224.68,32.62]
[1759383773037,4.45033026,224.71,224.68,33.34]
[1759383773231,4.45033026,224.71,224.68,32.62]
[1759383773439,2.33044222,224.69,224.67,2.32120468]
[1759383773666,4.45033026,224.71,224.67,32.62]
[1759383773667,3.03044222,224.68,224.67,32.62]
[1759383773866,2.33044222,224.68,224.67,32.62]
[1759383775045,11.1249555,224.72,224.67,32.62]
[1759383775046,11.12327409,224.76,224.67,32.62]
[1759383775260,11.12327409,224.76,224.68,0.72]
[1759383775261,2.33044222,224.74,224.68,0.72]
[1759383775438,10.87647521,224.75,224.68,0.72]
[1759383775439,2.33044222,224.73,224.68,0.72]
[1759383776364,0.14216157,224.74,224.68,0.72]
[1759383776544,4.4499822,224.72,224.67,0.72]
[1759383776744,5.1399822,224.72,224.68,32.62]
[1759383776952,6.78042442,224.72,224.69,32.62]
[1759383777864,6.78042442,224.72,224.67,0.72]
[1759383778044,6.78042442,224.72,224.68,32.62]
[1759383778242,6.78042442,224.72,224.68,33.34]
[1759383778854,6.78042442,224.72,224.68,111.82]
[1759383779397,6.78042442,224.72,224.68,112.54]
[1759383779671,6.78042442,224.72,224.69,32.62]
[1759383779964,6.78042442,224.72,224.7,32.6]
[1759383780364,2.33044222,224.71,224.7,32.6]
[1759383780565,2.33044222,224.71,224.7,111.8]
[1759383781152,13.89691743,224.71,224.7,79.2]
[1759383781558,2.33044222,224.71,224.7,79.2]
[1759383781744,4.44977014,224.74,224.7,79.92]
[1759383781947,2.33044222,224.73,224.7,79.2]
[1759383782287,2.33044222,224.73,224.71,32.6]
[1759383782958,2.33044222,224.72,224.71,32.6]
[1759383783182,3.02044222,224.72,224.7,79.2]
[1759383783383,13.89691743,224.71,224.7,79.2]
[1759383783779,18.34709766,224.71,224.7,79.2]
[1759383784189,18.48925923,224.71,224.7,79.2]
[1759383784774,0.14216157,224.7,224.66,32.6]
[1759383785091,2.33044222,224.67,224.66,32.6]
[1759383785291,3.02044222,224.67,224.66,32.6]
[1759383785694,2.33044222,224.68,224.66,32.6]
[1759383785880,0.28432314,224.68,224.66,32.6]
[1759383787179,7.06556682,224.68,224.66,32.6]
[1759383787386,2.33044222,224.67,224.66,32.6]
[1759383787581,2.33044222,224.67,224.62,79.92]
[1759383787772,7.06556682,224.68,224.63,32.6]
[1759383787972,7.75556682,224.68,224.63,32.6]
[1759383788197,7.75556682,224.68,224.63,33.32]
[1759383790581,13.89691743,224.67,224.63,79.2]
[1759383790789,2.33044222,224.66,224.64,32.58]
[1759383791173,13.89691743,224.67,224.64,32.58]
[1759383791374,4.45117065,224.66,224.64,32.58]
[1759383793385,14.039079,224.65,224.63,79.2]
[1759383793610,0.14216157,224.63,224.61,111.78]
[1759383794276,0.28432314,224.63,224.61,111.78]
[1759383795279,4.73621513,224.63,224.61,79.2]
[1759383795484,4.73621513,224.63,224.61,111.76]
[1759383795485,0.69,224.62,224.61,111.76]
[1759383795697,2.47260379,224.62,224.61,111.76]
[1759383796322,0.14216157,224.6,224.56,111.86]
[1759383796673,0.14216157,224.61,224.57,0.72]
[1759383796907,0.14216157,224.61,224.58,32.56]
[1759383797778,0.28432314,224.61,224.58,32.56]
[1759383797978,4.73652106,224.61,224.58,32.56]
[1759383798388,4.73652106,224.61,224.57,0.72]
[1759383798583,4.73652106,224.61,224.58,32.56]
[1759383799719,4.73652106,224.61,224.58,111.76]
[1759383800326,6.23188303,224.61,224.59,32.56]
[1759383800496,6.92188303,224.61,224.59,32.56]
[1759383800992,6.23188303,224.61,224.59,32.56]
[1759383801497,6.88188303,224.61,224.59,32.56]
[1759383803012,4.73652106,224.61,224.59,32.56]
[1759383803309,4.73652106,224.61,224.59,33.25]
[1759383803503,4.73652106,224.61,224.56,0.79]
[1759383803713,6.88188303,224.61,224.56,33.35]
[1759383804093,6.23188303,224.61,224.56,32.66]
[1759383804401,6.23188303,224.61,224.57,0.72]
[1759383805713,6.23188303,224.61,224.58,32.56]
[1759383805894,4.73652106,224.61,224.58,32.56]
[1759383806736,4.73652106,224.61,224.58,33.28]
[1759383806926,0.28432314,224.61,224.58,33.28]
[1759383807425,0.28432314,224.61,224.58,32.56]
[1759383807590,15.3282654,224.63,224.59,0.72]
[1759383807792,15.3282654,224.63,224.58,32.56]
[1759383807993,0.14216157,224.62,224.58,33.28]
[1759383808613,4.45152416,224.65,224.59,0.72]
[1759383808823,10.87647521,224.66,224.59,5.17246673]
[1759383809116,2.18536197,224.65,224.58,83.65275464]
[1759383809442,0.14216157,224.64,224.6,32.54]
[1759383809617,0.14216157,224.64,224.61,0.72]
[1759383809922,0.14216157,224.64,224.6,32.54]
[1759383810099,0.14216157,224.64,224.6,33.26]
[1759383810496,0.14216157,224.64,224.6,0.72]
[1759383810717,0.14216157,224.64,224.61,32.52]
[1759383812117,0.14216157,224.64,224.62,33.24]
[1759383812620,0.14216157,224.64,224.62,32.52]
[1759383812802,0.14216157,224.64,224.62,33.24]
[1759383814317,0.28432314,224.65,224.62,32.52]
[1759383814503,1.49536197,224.64,224.62,79.2]
[1759383814714,2.18536197,224.64,224.62,111.72]
[1759383815023,1.49536197,224.64,224.62,111.72]
[1759383815220,6.23115478,224.65,224.62,111.72]
[1759383815535,6.92115478,224.65,224.62,111.72]
[1759383816730,9.87893786,224.68,224.62,111.72]
[1759383816731,0.69,224.67,224.62,111.72]
[1759383816901,13.06183718,224.66,224.62,111.72]
[1759383817699,13.06183718,224.66,224.62,112.44]
[1759383817700,12.37183718,224.66,224.62,112.44]
[1759383818520,16.82301185,224.66,224.62,112.44]
[1759383818827,9.87893786,224.68,224.63,0.72]
[1759383819023,9.87893786,224.68,224.64,32.5]
[1759383819232,9.87893786,224.68,224.64,111.7]
[1759383819520,9.87893786,224.68,224.65,0.72]
[1759383819725,9.87893786,224.68,224.66,32.5]
[1759383820616,9.87893786,224.68,224.67,0.72]
[1759383823304,9.87893786,224.68,224.67,79.92]
[1759383823910,9.87893786,224.68,224.66,36.95112126]
[1759383824117,0.69,224.8,224.69,20.8]
[1759383824322,0.69,224.8,224.7,33.2]
[1759383824530,0.69,224.8,224.73,20.8]
[1759383824724,0.69,224.8,224.74,32.48]
[1759383825320,0.69,224.8,224.74,33.2]
[1759383826405,5.13840946,224.8,224.74,37.64954272]
[1759383826607,1.49536197,224.77,224.75,32.46]
[1759383826917,1.49536197,224.76,224.74,32.46]
[1759383827342,2.18536197,224.78,224.74,32.46]
[1759383827841,0.28432314,224.75,224.71,5.17011295]
[1759383828028,0.28432314,224.75,224.72,32.46]
[1759383828232,0.28432314,224.75,224.72,33.18]
[1759383828913,0.69,224.82,224.74,20.8]
[1759383829131,6.63337394,224.82,224.75,33.18]